fUST/lending_fUST_20250811
["ID","MTS","AMOUNT","RATE_DAILY","PERIOD"]
[378439568,1754859039141,-460.0,0.00020145,2]
[378439570,1754859039151,-324.62236031,0.00020145,2]
[378439572,1754859039160,-460.0,0.00020145,2]
[378439574,1754859039170,-460.0,0.00020145,2]
[378439576,1754859039180,-460.0,0.00020145,2]
[378439578,1754859039190,-460.0,0.00020145,2]
[378439580,1754859039199,-460.0,0.00020145,2]
[378439582,1754859039208,-460.0,0.00020145,2]
[378439584,1754859039218,-460.0,0.00020145,2]
[378439586,1754859039227,-460.0,0.00020145,2]
[378439588,1754859039237,-500.0,0.00020146,2]
[378439590,1754859039246,-460.0,0.00020146,2]
[378439592,1754859039255,-460.0,0.00020146,2]
[378439594,1754859039265,-460.0,0.00020146,2]
[378439596,1754859039274,-460.0,0.00020146,2]
[378439598,1754859039283,-184.822944,0.00020187,2]
[378439600,1754859039292,-369.99551319,0.00020362,2]
[378439603,1754859039302,-460.0,0.00020362,2]
[378439604,1754859039311,-460.0,0.00020362,2]
[378439607,1754859039320,-213.16112877,0.00020362,2]
[378439610,1754859039329,-460.0,0.00020362,2]
[378439613,1754859039338,-1244.48,0.00020362,2]
[378439615,1754859039347,-460.0,0.00020363,2]
[378439617,1754859039356,-460.0,0.00020363,2]
[378439619,1754859039365,-460.0,0.00020363,2]
[378439621,1754859039374,-187.85884647,0.00020363,2]
[378439623,1754859039383,-460.0,0.00020363,2]
[378439625,1754859039392,-460.0,0.00020363,2]
[378439627,1754859039401,-465.87003239,0.00020363,2]
[378439629,1754859039410,-460.0,0.00020363,2]
[378439632,1754859039421,-460.0,0.00020363,2]
[378439634,1754859039430,-311.95801396,0.00020363,2]
[378439636,1754859039439,-460.0,0.00020363,2]
[378439638,1754859039448,-460.0,0.00020363,2]
[378439640,1754859039457,-462.10113837,0.00020363,2]
[378439642,1754859039466,-460.0,0.00020363,2]
[378439644,1754859039475,-460.0,0.00020363,2]
[378439646,1754859039484,-535.86530724,0.00020363,2]
[378439648,1754859039493,-460.0,0.00020363,2]
[378439650,1754859039503,-158.33347761,0.00020363,2]
[378439652,1754859039512,-465.27132472,0.00020363,2]
[378439654,1754859039520,-460.0,0.00020363,2]
[378439656,1754859039529,-460.0,0.00020363,2]
[378439658,1754859039539,-460.0,0.00020363,2]
[378439660,1754859039548,-460.0,0.00020363,2]
[378439662,1754859039558,-462.28002268,0.00020363,2]
[378439664,1754859039568,-460.0,0.00020363,2]
[378439666,1754859039577,-461.17017348,0.00020363,2]
[378439668,1754859039586,-460.0,0.00020363,2]
[378439670,1754859039595,-460.0,0.00020363,2]
[378439672,1754859039604,-467.56181778,0.00020363,2]
[378439674,1754859039614,-460.0,0.00020363,2]
[378439676,1754859039623,-460.0,0.00020363,2]
[378439678,1754859039632,-460.0,0.00020363,2]
[378439680,1754859039644,-460.0,0.00020363,2]
[378439682,1754859039653,-460.0,0.00020363,2]
[378439684,1754859039662,-460.0,0.00020363,2]
[378439686,1754859039671,-460.0,0.00020363,2]
[378439687,1754859039680,-469.27275619,0.00020363,2]
[378439689,1754859039689,-460.0,0.00020363,2]
[378439691,1754859039698,-460.0,0.00020363,2]
[378439693,1754859039707,-460.0,0.00020363,2]
[378439695,1754859039716,-467.47258127,0.00020363,2]
[378439697,1754859039726,-460.0,0.00020363,2]
[378439699,1754859039735,-460.0,0.00020363,2]
[378439701,1754859039744,-460.0,0.00020363,2]
[378439703,1754859039753,-460.0,0.00020363,2]
[378439706,1754859039763,-460.0,0.00020363,2]
[378439707,1754859039772,-460.0,0.00020363,2]
[378439709,1754859039781,-460.0,0.00020363,2]
[378439711,1754859039790,-460.0,0.00020363,2]
[378439713,1754859039799,-460.0,0.00020417,2]
[378439715,1754859039809,-460.0,0.00020417,2]
[378439717,1754859039818,-460.0,0.00020418,2]
[378439719,1754859039827,-460.0,0.00020418,2]
[378439721,1754859039836,-460.0,0.00020418,2]
[378439723,1754859039845,-460.0,0.00020418,2]
[378439725,1754859039856,-900.75,0.00020418,2]
[378439727,1754859039865,-236.7447769,0.00020418,2]
[378439730,1754859039874,-489.41,0.00020418,2]
[378439731,1754859039883,-460.0,0.00020418,2]
[378439734,1754859039893,-460.0,0.00020418,2]
[378439736,1754859039902,-460.0,0.00020418,2]
[378439737,1754859039911,-460.0,0.00020418,2]
[378439739,1754859039920,-460.0,0.00020418,2]
[378439741,1754859039930,-498.24610058,0.00020418,2]
[378439743,1754859039939,-516.08,0.00020419,2]
[378439745,1754859039950,-460.0,0.00020419,2]
[378439747,1754859039959,-460.0,0.00020419,2]
[378439749,1754859039968,-460.0,0.00020419,2]
[378439751,1754859039978,-460.0,0.00020419,2]
[378439753,1754859039987,-460.0,0.00020419,2]
[378439755,1754859039996,-460.0,0.00020419,2]
[378439757,1754859040005,-460.0,0.00020419,2]
[378439759,1754859040016,-460.0,0.00020419,2]
[378439761,1754859040026,-460.0,0.00020419,2]
[378439763,1754859040036,-460.0,0.00020419,2]
[378439765,1754859040048,-460.0,0.0002042,2]
[378439767,1754859040057,-460.0,0.0002042,2]
[378439769,1754859040068,-3804.30799257,0.00020536,2]
[378439772,1754859040079,-500.0,0.00020573,2]
[378439774,1754859040088,-500.0,0.00020573,2]
[378439775,1754859040098,-500.0,0.00020573,2]
[378439777,1754859040107,-500.0,0.00020573,2]
[378439779,1754859040116,-480.32649188,0.00020573,2]
[378439781,1754859040125,-503.32533777,0.00020573,2]
[378439783,1754859040135,-500.0,0.00020573,2]
[378439785,1754859040144,-500.0,0.00020573,2]
[378439787,1754859040154,-500.0,0.00020573,2]
[378439789,1754859040163,-500.0,0.00020573,2]
[378439791,1754859040173,-500.0,0.00020573,2]
[378439793,1754859040182,-500.0,0.00020573,2]
[378439795,1754859040191,-2516.27,0.00020585,3]
[378439797,1754859040201,-1258.13,0.00020585,3]
[378439799,1754859040210,-629.07,0.00020585,3]
[378439802,1754859040220,-314.53,0.00020585,3]
[378439803,1754859040229,-157.27,0.00020585,3]
[378439805,1754859040239,-471.81,0.00020585,3]
[378439808,1754859040249,-138407.99720552,0.00020595,2]
[378439810,1754859040260,-460.0,0.00020636,2]
[378439812,1754859040271,-460.0,0.00020636,2]
[378439813,1754859040283,-1244.48,0.00020636,2]
[378439815,1754859040292,-460.0,0.00020637,2]
[378439817,1754859040302,-281.18991007,0.00020637,2]
[378439819,1754859040312,-460.0,0.00020637,2]
[378439822,1754859040322,-460.0,0.00020637,2]
[378439823,1754859040332,-460.96634695,0.00020637,2]
[378439837,1754859040449,-460.0,0.00020637,2]
[378439839,1754859040458,-461.64051878,0.00020637,2]
[378439840,1754859040467,-460.0,0.00020637,2]
[378439841,1754859040476,-180.11024073,0.00020637,2]
[378439842,1754859040485,-460.0,0.00020637,2]
[378439843,1754859040494,-460.0,0.00020637,2]
[378439844,1754859040503,-460.0,0.00020692,2]
[378439845,1754859040512,-460.0,0.00020692,2]
[378439846,1754859040521,-460.0,0.00020692,2]
[378439847,1754859040531,-900.75,0.00020692,2]
[378439848,1754859040540,-489.41,0.00020692,2]
[378439849,1754859040552,-460.0,0.00020692,2]
[378439850,1754859040561,-460.0,0.00020692,2]
[378439851,1754859040571,-460.0,0.00020693,2]
[378439852,1754859040580,-460.0,0.00020693,2]
[378439853,1754859040589,-460.0,0.00020693,2]
[378439854,1754859040598,-460.0,0.00020693,2]
[378439855,1754859040607,-460.0,0.00020693,2]
[378439856,1754859040616,-460.0,0.00020693,2]
[378439857,1754859040625,-460.0,0.00020693,2]
[378439858,1754859040636,-460.0,0.00020693,2]
[378439859,1754859040645,-563.28,0.00020694,2]
[378439860,1754859040654,-151.0,0.000208,4]
[378439861,1754859040663,-500.0,0.00020889,2]
[378439862,1754859040672,-460.0,0.0002091,2]
[378439863,1754859040681,-460.0,0.0002091,2]
[378439864,1754859040691,-1244.48,0.0002091,2]
[378439865,1754859040700,-460.0,0.00020911,2]
[378439866,1754859040710,-460.0,0.00020911,2]
[378439867,1754859040719,-151.0,0.00020913,2]
[378439868,1754859040728,-203.89978343,0.00020913,2]
[378439869,1754859040737,-151.0,0.00020913,2]
[378439870,1754859040747,-151.0,0.00020913,2]
[378439871,1754859040756,-309.97954589,0.00020966,2]
[378439872,1754859040765,-460.0,0.00020966,2]
[378439873,1754859040774,-900.75,0.00020966,2]
[378439874,1754859040784,-489.41,0.00020966,2]
[378439876,1754859040793,-460.0,0.00020966,2]
[378439878,1754859040803,-460.0,0.00020966,2]
[378439880,1754859040812,-460.0,0.00020967,2]
[378439882,1754859040821,-460.0,0.00020967,2]
[378439884,1754859040830,-460.0,0.00020967,2]
[378439886,1754859040839,-460.0,0.00020967,2]
[378439888,1754859040848,-460.0,0.00020967,2]
[378439890,1754859040857,-460.0,0.00020967,2]
[378439892,1754859040866,-9945.89154689,0.0002114,2]
[378439894,1754859040876,-200.0,0.0002115,15]
[378439896,1754859040885,-300.0,0.0002115,15]
[378439898,1754859040894,-460.0,0.00021184,2]
[378439900,1754859040903,-460.0,0.00021184,2]
[378439902,1754859040912,-1244.48,0.00021184,2]
[378439904,1754859040921,-460.0,0.00021185,2]
[378439906,1754859040931,-460.0,0.00021185,2]
[378439908,1754859040940,-151.0,0.00021187,2]
[378439910,1754859040949,-151.0,0.000212,4]
[378439912,1754859040958,-421.52398924,0.00021239,2]
[378439914,1754859040967,-500.0,0.00021239,2]
[378439915,1754859040976,-500.0,0.00021239,2]
[378439917,1754859040985,-500.0,0.00021239,2]
[378439919,1754859040994,-500.0,0.00021239,2]
[378439921,1754859041003,-500.0,0.00021239,2]
[378439923,1754859041013,-500.0,0.00021239,2]
[378439925,1754859041022,-500.0,0.00021239,2]
[378439927,1754859041031,-500.0,0.00021239,2]
[378439929,1754859041040,-500.0,0.00021239,2]
[378439931,1754859041049,-500.0,0.00021239,2]
[378439933,1754859041058,-500.0,0.00021239,2]
[378439935,1754859041067,-500.0,0.00021239,2]
[378439937,1754859041077,-500.0,0.00021239,2]
[378439939,1754859041086,-500.0,0.00021239,2]
[378439941,1754859041095,-386.48420179,0.00021239,2]
[378439943,1754859041104,-460.0,0.0002124,2]
[378439945,1754859041113,-900.75,0.0002124,2]
[378439947,1754859041122,-489.41,0.0002124,2]
[378439949,1754859041131,-460.0,0.0002124,2]
[378439951,1754859041140,-310.94774883,0.0002124,2]
[378439953,1754859041149,-460.0,0.00021241,2]
[378439955,1754859041159,-460.0,0.00021241,2]
[378439957,1754859041168,-593.38528636,0.00021241,2]
[378439959,1754859041177,-460.0,0.00021241,2]
[378439961,1754859041186,-460.0,0.00021241,2]
[378439963,1754859041195,-3804.30799255,0.00021352,2]
[378439965,1754859041204,-231.96268195,0.00021435,2]
[378439967,1754859041213,-461.62346162,0.00021435,2]
[378439969,1754859041223,-216.64838636,0.00021435,2]
[378439971,1754859041232,-160.0,0.00021435,2]
[378439973,1754859041241,-843.0869304,0.00021435,2]
[378439975,1754859041250,-160.0,0.00021435,2]
[378439977,1754859041260,-215.44987349,0.00021435,2]
[378439979,1754859041269,-12668.57659669,0.00021435,2]
[378439981,1754859041278,-527.86640923,0.00021437,2]
[378439983,1754859041287,-460.0,0.00021458,2]
[378439985,1754859041297,-1244.48,0.00021458,2]
[378439987,1754859041306,-157.26674561,0.00021459,2]
[378439989,1754859041315,-589.44,0.00021459,2]
[378439991,1754859041324,-198.0,0.00021461,2]
[378439993,1754859041334,-151.0,0.000215,4]
[378439995,1754859041343,-160.0,0.00021505,2]
[378439997,1754859041352,-460.0,0.00021514,2]
[378439999,1754859041362,-900.75,0.00021514,2]
[378440001,1754859041371,-489.41,0.00021514,2]
[378440003,1754859041381,-460.0,0.00021514,2]
[378440005,1754859041390,-460.0,0.00021515,2]
[378440007,1754859041400,-460.0,0.00021515,2]
[378440009,1754859041410,-460.0,0.00021515,2]
[378440011,1754859041419,-500.0,0.00021563,2]
[378440013,1754859041429,-500.0,0.00021563,2]
[378440015,1754859041438,-500.0,0.00021563,2]
[378440016,1754859041448,-500.0,0.00021563,2]
[378440019,1754859041458,-500.0,0.00021563,2]
[378440021,1754859041468,-18502.69577858,0.00021589,2]
[378440023,1754859041477,-151.0,0.00021589,2]
[378440024,1754859041486,-500.0,0.00021589,2]
[378440027,1754859041495,-151.0,0.00021589,2]
[378440028,1754859041505,-500.0,0.00021589,2]
[378440030,1754859041514,-151.0,0.00021589,2]
[378440032,1754859041523,-151.0,0.00021589,2]
[378440034,1754859041532,-151.0,0.00021589,2]
[378440036,1754859041541,-500.0,0.00021589,2]
[378440038,1754859041550,-151.0,0.00021589,2]
[378440040,1754859041560,-151.0,0.00021589,2]
[378440042,1754859041569,-151.0,0.00021589,2]
[378440044,1754859041578,-151.0,0.00021589,2]
[378440046,1754859041588,-151.0,0.00021589,2]
[378440048,1754859041598,-151.0,0.00021589,2]
[378440050,1754859041608,-500.0,0.00021589,2]
[378440052,1754859041619,-151.0,0.00021589,2]
[378440054,1754859041628,-151.0,0.00021589,2]
[378440056,1754859041639,-500.0,0.00021589,2]
[378440058,1754859041649,-151.0,0.00021589,2]
[378440060,1754859041658,-151.0,0.00021589,2]
[378440062,1754859041667,-500.0,0.00021589,2]
[378440064,1754859041676,-151.0,0.00021589,2]
[378440066,1754859041686,-500.0,0.00021589,2]
[378440068,1754859041695,-151.0,0.00021589,2]
[378440070,1754859041704,-151.0,0.00021589,2]
[378440072,1754859041715,-500.0,0.00021589,2]
[378440074,1754859041725,-151.0,0.00021589,2]
[378440076,1754859041735,-151.0,0.00021589,2]
[378440078,1754859041744,-151.0,0.00021589,2]
[378440080,1754859041753,-500.0,0.00021589,2]
[378440082,1754859041762,-151.0,0.00021589,2]
[378440084,1754859041771,-151.0,0.00021589,2]
[378440086,1754859041781,-151.0,0.00021589,2]
[378440088,1754859041790,-500.0,0.00021589,2]
[378440090,1754859041799,-151.0,0.00021589,2]
[378440092,1754859041809,-151.0,0.00021589,2]
[378440094,1754859041818,-151.0,0.00021589,2]
[378440096,1754859041827,-2183.31810187,0.00021589,2]
[378440098,1754859041837,-151.0,0.00021589,2]
[378440100,1754859041846,-500.0,0.00021589,2]
[378440102,1754859041855,-151.0,0.00021589,2]
[378440104,1754859041864,-151.0,0.00021589,2]
[378440106,1754859041873,-151.0,0.00021589,2]
[378440108,1754859041882,-500.0,0.00021589,2]
[378440110,1754859041893,-151.0,0.00021589,2]
[378440112,1754859041903,-151.0,0.00021589,2]
[378440114,1754859041912,-151.0,0.00021589,2]
[378440116,1754859041921,-500.0,0.00021589,2]
[378440118,1754859041930,-151.0,0.00021589,2]
[378440120,1754859041939,-151.0,0.00021589,2]
[378440122,1754859041948,-151.0,0.00021589,2]
[378440124,1754859041957,-500.0,0.00021589,2]
[378440126,1754859041966,-151.0,0.00021589,2]
[378440128,1754859041975,-151.0,0.00021589,2]
[378440130,1754859041983,-151.0,0.00021589,2]
[378440132,1754859041993,-500.0,0.00021589,2]
[378440134,1754859042001,-151.0,0.00021589,2]
[378440136,1754859042011,-151.0,0.00021589,2]
[378440138,1754859042020,-151.0,0.00021589,2]
[378440140,1754859042028,-151.0,0.00021589,2]
[378440142,1754859042038,-500.0,0.00021589,2]
[378440144,1754859042046,-151.0,0.00021589,2]
[378440146,1754859042055,-151.0,0.00021589,2]
[378440147,1754859042064,-151.0,0.00021589,2]
[378440149,1754859042073,-151.0,0.00021589,2]
[378440152,1754859042083,-151.0,0.00021589,2]
[378440153,1754859042092,-151.0,0.00021589,2]
[378440155,1754859042101,-151.0,0.00021589,2]
[378440158,1754859042110,-151.0,0.00021589,2]
[378440160,1754859042119,-151.0,0.00021589,2]
[378440161,1754859042128,-151.0,0.00021589,2]
[378440163,1754859042137,-151.0,0.00021589,2]
[378440165,1754859042146,-151.0,0.00021589,2]
[378440167,1754859042156,-151.0,0.00021589,2]
[378440168,1754859042165,-151.0,0.00021589,2]
[378440169,1754859042174,-151.0,0.00021589,2]
[378440170,1754859042183,-151.0,0.00021589,2]
[378440171,1754859042192,-151.0,0.00021589,2]
[378440172,1754859042201,-151.0,0.00021589,2]
[378440173,1754859042210,-151.0,0.00021589,2]
[378440174,1754859042219,-151.0,0.00021589,2]
[378440175,1754859042228,-256.01205118,0.00021589,2]
[378440176,1754859042237,-151.0,0.00021589,2]
[378440177,1754859042247,-151.0,0.00021589,2]
[378440178,1754859042256,-151.0,0.00021589,2]
[378440180,1754859042265,-151.0,0.00021589,2]
[378440182,1754859042274,-151.0,0.00021589,2]
[378440184,1754859042283,-151.0,0.00021589,2]
[378440185,1754859042292,-151.0,0.00021589,2]
[378440186,1754859042302,-151.0,0.00021589,2]
[378440187,1754859042312,-250.0,0.00021589,2]
[378440188,1754859042322,-151.0,0.00021589,2]
[378440189,1754859042332,-151.0,0.00021589,2]
[378440190,1754859042341,-250.0,0.00021589,2]
[378440191,1754859042350,-151.0,0.00021589,2]
[378440192,1754859042359,-151.0,0.00021589,2]
[378440194,1754859042368,-151.0,0.00021589,2]
[378440196,1754859042377,-151.0,0.00021589,2]
[378440198,1754859042386,-151.0,0.00021589,2]
[378440200,1754859042395,-151.0,0.00021589,2]
[378440202,1754859042405,-151.0,0.00021589,2]
[378440204,1754859042414,-233.80049677,0.00021589,2]
[378440206,1754859042423,-151.0,0.00021589,2]
[378440208,1754859042432,-151.0,0.00021589,2]
[378440210,1754859042441,-151.0,0.00021589,2]
[378440212,1754859042450,-250.0,0.00021589,2]
[378440214,1754859042459,-151.0,0.00021589,2]
[378440216,1754859042468,-151.0,0.00021589,2]
[378440218,1754859042477,-151.0,0.00021589,2]
[378440220,1754859042487,-151.0,0.00021589,2]
[378440222,1754859042496,-250.0,0.00021589,2]
[378440224,1754859042506,-151.0,0.00021589,2]
[378440226,1754859042516,-250.0,0.00021589,2]
[378440228,1754859042525,-151.0,0.00021589,2]
[378440230,1754859042534,-151.0,0.00021589,2]
[378440232,1754859042544,-250.0,0.00021589,2]
[378440234,1754859042554,-151.0,0.00021589,2]
[378440236,1754859042563,-151.0,0.00021589,2]
[378440238,1754859042572,-250.0,0.00021589,2]
[378440240,1754859042581,-151.0,0.00021589,2]
[378440242,1754859042591,-151.0,0.00021589,2]
[378440244,1754859042600,-250.0,0.00021589,2]
[378440246,1754859042609,-196.83053362,0.00021589,2]
[378440248,1754859042619,-151.0,0.00021589,2]
[378440250,1754859042628,-250.0,0.00021589,2]
[378440252,1754859042640,-151.0,0.00021589,2]
[378440254,1754859042649,-250.0,0.00021589,2]
[378440256,1754859042658,-151.0,0.00021589,2]
[378440258,1754859042667,-250.0,0.00021589,2]
[378440260,1754859042676,-151.0,0.00021589,2]
[378440262,1754859042685,-2183.31810187,0.00021644,2]
[378440264,1754859042694,-3007.12258557,0.00021655,2]
[378440266,1754859042703,-2026.38364001,0.0002166,2]
[378440268,1754859042713,-460.0,0.00021732,2]
[378440270,1754859042722,-1244.48,0.00021732,2]
[378440272,1754859042732,-460.0,0.00021788,2]
[378440274,1754859042741,-900.75,0.00021788,2]
[378440276,1754859042751,-489.41,0.00021788,2]
[378440278,1754859042760,-460.0,0.00021788,2]
[378440280,1754859042769,-460.0,0.00021789,2]
[378440282,1754859042779,-460.0,0.00021789,2]
[378440284,1754859042788,-460.0,0.00021789,2]
[378440286,1754859042797,-151.0,0.000219,4]
[378440288,1754859042806,-500.0,0.00021917,2]
[378440290,1754859042815,-500.0,0.00021917,2]
[378440292,1754859042824,-7226.85,0.00021917,2]
[378440294,1754859042834,-1327.5605296,0.00021918,7]
[378440296,1754859042843,-1680.0,0.00021929,2]
[378440298,1754859042851,-420.0,0.0002193,2]
[378440300,1754859042860,-2872.70049759,0.00021955,3]
[378440319,1754859043032,-244.0331958,0.00020143,2]
[378440321,1754859043042,-283.69682128,0.00020144,2]
[378440364,1754859046105,-160.0,0.0002,3]
[378440365,1754859046116,-160.0,0.0002,3]
[378440366,1754859046125,-460.0,0.00020143,2]
[378440367,1754859046135,-176.30317872,0.00020144,2]
[378440368,1754859046144,-460.0,0.00020144,2]
[378440369,1754859046156,-460.0,0.00020417,2]
[378440370,1754859046173,-225.19,0.00020585,10]
[378440371,1754859046182,-7139.02824542,0.00021239,2]
[378440372,1754859046192,-250.0,0.00021589,2]
[378440373,1754859046202,-250.0,0.00021589,2]
[378440374,1754859046211,-250.0,0.00021589,2]
[378440375,1754859046220,-250.0,0.00021589,2]
[378440376,1754859046230,-2159.83950241,0.00021955,3]
[378440377,1754859046239,-2516.26,0.00021955,3]
[378440378,1754859046247,-1258.14,0.00021955,3]
[378440379,1754859046257,-629.06,0.00021955,3]
[378440380,1754859046266,-314.54,0.00021955,3]
[378440381,1754859046275,-461.62346162,0.00021955,3]
[378440382,1754859046285,-527.86640923,0.00021955,3]
[378440383,1754859046295,-160.0,0.00021955,3]
[378440384,1754859046304,-185.0,0.00022,2]
[378440385,1754859046313,-153.22,0.00022,2]
[378440386,1754859046323,-1416.23,0.00022,2]
[378440387,1754859046344,-328.0,0.00022,2]
[378440388,1754859046354,-460.0,0.00022006,2]
[378440389,1754859046364,-1244.48,0.00022006,2]
[378440390,1754859046374,-260.0,0.00022053,2]
[378440391,1754859046384,-460.0,0.00022062,2]
[378440392,1754859046394,-900.75,0.00022062,2]
[378440393,1754859046404,-489.41,0.00022062,2]
[378440394,1754859046414,-460.0,0.00022062,2]
[378440395,1754859046424,-460.0,0.00022063,2]
[378440396,1754859046434,-400.27402254,0.00022063,2]
[378440397,1754859046444,-460.0,0.00022063,2]
[378440398,1754859046454,-1000.0,0.0002211,2]
[378440399,1754859046464,-1000.0,0.0002211,2]
[378440400,1754859046474,-702.85191842,0.0002211,2]
[378440401,1754859046484,-151.0,0.00022137,2]
[378440402,1754859046494,-3804.30799255,0.00022168,2]
[378440403,1754859046503,-328.0,0.00022192,7]
[378440404,1754859046514,-151.0,0.000222,9]
[378440405,1754859046523,-1068.9,0.00022253,2]
[378440406,1754859046534,-460.0,0.0002228,2]
[378440407,1754859046544,-1244.48,0.0002228,2]
[378440408,1754859046554,-460.0,0.00022336,2]
[378440409,1754859046564,-900.75,0.00022336,2]
[378440410,1754859046574,-489.41,0.00022336,2]
[378440411,1754859046585,-460.0,0.00022336,2]
[378440412,1754859046596,-256.33,0.00022337,2]
[378440413,1754859046606,-460.0,0.00022337,2]
[378440414,1754859046616,-9945.89154687,0.0002247,2]
[378440415,1754859046626,-151.0,0.000225,8]
[378440416,1754859046636,-460.0,0.00022554,2]
[378440417,1754859046648,-1244.48,0.00022554,2]
[378440418,1754859046659,-360.0,0.00022601,2]
[378440419,1754859046669,-460.0,0.0002261,2]
[378440420,1754859046678,-900.75,0.0002261,2]
[378440421,1754859046688,-489.41,0.0002261,2]
[378440422,1754859046698,-460.0,0.0002261,2]
[378440423,1754859046707,-460.0,0.00022611,2]
[378440424,1754859046717,-426.0,0.00022622,2]
[378440425,1754859046727,-1500.0,0.00022658,2]
[378440426,1754859046737,-1500.0,0.00022658,2]
[378440427,1754859046747,-151.0,0.00022685,2]
[378440428,1754859046757,-426.0,0.00022722,2]
[378440429,1754859046767,-373.75,0.00022828,2]
[378440430,1754859046778,-1244.48,0.00022828,2]
[378440431,1754859046787,-460.0,0.00022884,2]
[378440432,1754859046797,-900.75,0.00022884,2]
[378440433,1754859046807,-489.41,0.00022884,2]
[378440434,1754859046817,-460.0,0.00022884,2]
[378440435,1754859046827,-319.96,0.00022885,2]
[378440436,1754859046836,-151.0,0.000229,7]
[378440437,1754859046845,-1068.9,0.00022912,2]
[378440438,1754859046855,-19187.29552238,0.00022958,2]
[378440439,1754859046866,-151.0,0.00022958,2]
[378440440,1754859046875,-3804.30799255,0.00022984,2]
[378440441,1754859046886,-5309.0,0.00023,2]
[378440442,1754859046895,-843.0869304,0.00023,3]
[378440443,1754859046905,-160.0,0.00023,2]
[378440444,1754859046914,-216.64838636,0.00023,3]
[378440445,1754859046924,-160.0,0.00023,3]
[378440446,1754859046933,-328.0,0.00023014,7]
[378440447,1754859046946,-211.0,0.00023041,9]
[378440448,1754859046957,-426.0,0.00023087,2]
[378440449,1754859046967,-5888.0,0.00023094,2]
[378440450,1754859046977,-1244.48,0.00023102,2]
[378440451,1754859046986,-460.0,0.00023149,2]
[378440452,1754859046996,-460.0,0.00023158,2]
[378440453,1754859047006,-900.75,0.00023158,2]
[378440454,1754859047015,-489.41,0.00023158,2]
[378440455,1754859047025,-460.0,0.00023158,2]
[378440456,1754859047035,-800.0,0.0002318,2]
[378440457,1754859047046,-1416.23,0.00023181,2]
[378440458,1754859047055,-5888.0,0.00023191,2]
[378440459,1754859047065,-800.0,0.00023192,2]
[378440460,1754859047075,-151.0,0.000232,8]
[378440461,1754859047085,-2000.0,0.00023206,2]
[378440462,1754859047095,-2000.0,0.00023206,2]
[378440463,1754859047105,-200.0,0.00023217,15]
[378440464,1754859047115,-200.0,0.00023217,15]
[378440465,1754859047124,-300.0,0.00023217,15]
[378440466,1754859047134,-151.15347236,0.00023233,2]
[378440467,1754859047143,-800.0,0.00023265,2]
[378440468,1754859047153,-577.75729654,0.00023275,2]
[378440469,1754859047171,-611.1579019,0.00023275,2]
[378440470,1754859047183,-596.48208102,0.00023275,2]
[378440473,1754859134687,2980.39914283,0.000199,2]
[378440475,1754859316168,2981.2899241,0.000199,2]
[378440479,1754859420378,176.120557,0.00013699,2]